fUSD/lending_fUSD_20250404
["ID","MTS","AMOUNT","RATE_DAILY","PERIOD"]
[357122231,1743762430123,-1382.5387138,0.00050989,120]
[357122232,1743762430145,-1382.5387138,0.00050989,120]
[357122233,1743762430165,-1382.5387138,0.00050989,120]
[357122234,1743762430189,-1382.5387138,0.00050989,120]
[357122235,1743762430210,-1382.5387138,0.00050989,120]
[357122236,1743762430231,-1382.5387138,0.00050989,120]
[357122237,1743762430252,-1382.5387138,0.00050989,120]
[357122238,1743762430272,-1382.5387138,0.00050989,120]
[357122239,1743762430292,-1382.5387138,0.00050989,120]
[357122240,1743762430312,-1451.66564948,0.00050989,120]
[357122241,1743762430332,-1451.66564948,0.00050989,120]
[357122242,1743762430355,-1451.66564948,0.00050989,120]
[357122243,1743762430377,-1451.66564948,0.00050989,120]
[357122244,1743762430397,-1451.66564948,0.00050989,120]
[357122245,1743762430416,-1451.66564948,0.00050989,120]
[357122246,1743762430436,-1451.66564948,0.00050989,120]
[357122247,1743762430457,-1451.66564948,0.00050989,120]
[357122248,1743762430477,-1451.66564948,0.00050989,120]
[357122249,1743762430497,-150.36,0.0005099,120]
[357122250,1743762430517,-150.36,0.0005099,120]
[357122251,1743762430537,-54250.1836735,0.0005099,4]
[357122253,1743762518425,1499.999999,0.00035833,90]
[357122256,1743762529735,-393.13025879,0.00014999,2]
[357122257,1743762529760,-27106.86974121,0.00015,2]
[357122258,1743762531580,-163.0,0.00015,2]
[357122259,1743762546136,-8004.673418,0.00015,2]
[357122260,1743762547136,-55442.09254507,0.00015,2]
[357122261,1743762547160,-8419.61973936,0.00016,2]
[357122262,1743762547183,-200.0,0.0001634,2]
[357122263,1743762547209,-190.63099469,0.00018,2]
[357122264,1743762547230,-1143.60048279,0.00018,2]
[357122265,1743762547252,-665.6801457,0.000181,2]
[357122266,1743762547273,-1668.61138415,0.0002015,2]
[357122267,1743762547293,-503.65607221,0.0002271,2]
[357122268,1743762547313,-200.0,0.00023,2]
[357122269,1743762547333,-402.01720887,0.0002301,2]
[357122270,1743762547353,-284.361627,0.000253,10]
[357122271,1743762547372,-25076.88978016,0.00033,2]
[357122272,1743762548080,-4198.99424,0.00033,2]
[357122273,1743762550112,-2369.52485735,0.00033,2]
[357122274,1743762550142,-11190.74000249,0.00033,2]
[357122275,1743762550164,-270.83311248,0.0004,7]
[357122276,1743762550189,-938.99238702,0.0004,7]
[357122277,1743762550215,-5056.00681027,0.0004,2]
[357122278,1743762550236,-784.07,0.00043,30]
[357122279,1743762550257,-347.57,0.00043,30]
[357122280,1743762550278,-444.76,0.00043,30]
[357122281,1743762550298,-150.0,0.00043,30]
[357122282,1743762550320,-444.76,0.00043,30]
[357122283,1743762550340,-444.76,0.00043,30]
[357122284,1743762550360,-152.67856202,0.000438,120]
[357122285,1743762550380,-634.70901779,0.00047201,8]
[357122286,1743762551072,-959.99435317,0.00049315,120]
[357122287,1743762551095,-959.99435317,0.00049315,120]
[357122288,1743762551119,-959.99435317,0.00049315,120]
[357122289,1743762551141,-959.99435317,0.00049315,120]
[357122290,1743762551162,-959.99435317,0.00049315,120]
[357122291,1743762551183,-959.99435317,0.00049315,120]
[357122292,1743762551205,-959.99435317,0.00049315,120]
[357122293,1743762551226,-959.99435317,0.00049315,120]
[357122294,1743762551248,-959.99435317,0.00049315,120]
[357122295,1743762551269,-959.99435317,0.00049315,120]
[357122296,1743762551289,-959.99435317,0.00049315,120]
[357122297,1743762551311,-959.99435317,0.00049315,120]
[357122298,1743762551332,-959.99435317,0.00049315,120]
[357122299,1743762551352,-959.99435317,0.00049315,120]
[357122300,1743762551373,-959.99435317,0.00049315,120]
[357122301,1743762551394,-959.99435317,0.00049315,120]
[357122302,1743762551415,-959.99435317,0.00049315,120]
[357122303,1743762551436,-959.99435317,0.00049315,120]
[357122304,1743762551459,-959.99435317,0.00049315,120]
[357122305,1743762551480,-959.99435317,0.00049315,120]
[357122306,1743762551501,-959.99435317,0.00049315,120]
[357122307,1743762551522,-959.99435317,0.00049315,120]
[357122308,1743762551545,-959.99435317,0.00049315,120]
[357122309,1743762551708,-959.99435317,0.00049315,120]
[357122310,1743762551734,-959.99435317,0.00049315,120]
[357122311,1743762551756,-959.99435317,0.00049315,120]
[357122312,1743762551777,-959.99435317,0.00049315,120]
[357122313,1743762551798,-959.99435317,0.00049315,120]
[357122314,1743762551819,-959.99435317,0.00049315,120]
[357122315,1743762551841,-959.99435317,0.00049315,120]
[357122316,1743762551862,-959.99435317,0.00049315,120]
[357122317,1743762551883,-959.99435317,0.00049315,120]
[357122318,1743762551904,-959.99435317,0.00049315,120]
[357122319,1743762551925,-959.99435317,0.00049315,120]
[357122320,1743762551945,-959.99435317,0.00049315,120]
[357122321,1743762551967,-959.99435317,0.00049315,120]
[357122322,1743762551988,-959.99435317,0.00049315,120]
[357122323,1743762552009,-959.99435317,0.00049315,120]
[357122324,1743762552030,-959.99435317,0.00049315,120]
[357122325,1743762552052,-959.99435317,0.00049315,120]
[357122326,1743762552076,-959.99435317,0.00049315,120]
[357122327,1743762552096,-959.99435317,0.00049315,120]
[357122328,1743762552118,-959.99435317,0.00049315,120]
[357122329,1743762552140,-959.99435317,0.00049315,120]
[357122330,1743762552162,-959.99435317,0.00049315,120]
[357122331,1743762552183,-959.99435317,0.00049315,120]
[357122332,1743762552205,-959.99435317,0.00049315,120]
[357122333,1743762552226,-610.0674538,0.00049315,120]
[357122334,1743762552249,-610.0674538,0.00049315,120]
[357122335,1743762552270,-610.0674538,0.00049315,120]
[357122336,1743762552291,-610.0674538,0.00049315,120]
[357122337,1743762552312,-610.0674538,0.00049315,120]
[357122338,1743762552333,-610.0674538,0.00049315,120]
[357122339,1743762552354,-610.0674538,0.00049315,120]
[357122340,1743762552375,-610.0674538,0.00049315,120]
[357122341,1743762552396,-610.0674538,0.00049315,120]
[357122342,1743762552416,-610.0674538,0.00049315,120]
[357122343,1743762552437,-610.0674538,0.00049315,120]
[357122344,1743762552463,-610.0674538,0.00049315,120]
[357122345,1743762552487,-610.0674538,0.00049315,120]
[357122346,1743762552511,-610.0674538,0.00049315,120]
[357122347,1743762552535,-610.0674538,0.00049315,120]
[357122348,1743762552558,-610.0674538,0.00049315,120]
[357122349,1743762552579,-610.0674538,0.00049315,120]
[357122350,1743762552602,-610.0674538,0.00049315,120]
[357122351,1743762581788,610.0,0.00049315,30]
[357122361,1743762625953,151.0,0.00045,120]
[357122384,1743762631969,-210.49227335,0.00049772,2]
[357122385,1743762631979,-98.94872662,0.0004979,120]
[357122386,1743762632078,-168359.82434409,0.0004979,120]
[357122387,1743762632089,-277.545,0.00049872,2]
[357122388,1743762632098,-172.70724595,0.000499,120]
[357122389,1743762632108,-989.20644972,0.00049999,120]
[357122390,1743762632117,-989.20644972,0.00049999,120]
[357122391,1743762632127,-989.20644972,0.00049999,120]
[357122392,1743762632136,-989.20644972,0.00049999,120]
[357122393,1743762632145,-989.20644972,0.00049999,120]
[357122394,1743762632155,-989.20644972,0.00049999,120]
[357122395,1743762632168,-989.20644972,0.00049999,120]
[357122396,1743762632177,-989.20644972,0.00049999,120]
[357122397,1743762632186,-989.20644972,0.00049999,120]
[357122398,1743762632195,-989.20644972,0.00049999,120]
[357122399,1743762632206,-989.20644972,0.00049999,120]
[357122400,1743762632216,-989.20644972,0.00049999,120]
[357122401,1743762632225,-1008.99057872,0.00049999,120]
[357122402,1743762632237,-1008.99057872,0.00049999,120]
[357122403,1743762632246,-1008.99057872,0.00049999,120]
[357122404,1743762632257,-1008.99057872,0.00049999,120]
[357122405,1743762632267,-1008.99057872,0.00049999,120]
[357122406,1743762632276,-1008.99057872,0.00049999,120]
[357122407,1743762632287,-1008.99057872,0.00049999,120]
[357122408,1743762632296,-1008.99057872,0.00049999,120]
[357122409,1743762632306,-1008.99057872,0.00049999,120]
[357122410,1743762632316,-1008.99057872,0.00049999,120]
[357122411,1743762632326,-212.0,0.0005,2]
[357122412,1743762632335,-77713.82417941,0.0005,2]
[357122413,1743762632351,-649.40677989,0.0005,2]
[357122415,1743762632437,-2496.34561651,0.0005,2]
[357122422,1743762637809,-47084.42342419,0.0005,2]
[357122423,1743762637819,-906.48,0.0005,30]
[357122424,1743762637829,-150.0,0.0005,30]
[357122425,1743762637838,-196.82,0.0005,30]
[357122426,1743762637848,-154.72,0.0005,30]
[357122427,1743762637857,-150.0,0.0005,30]
[357122428,1743762637867,-150.0,0.0005,30]
[357122429,1743762637877,-784.07,0.0005,30]
[357122430,1743762637886,-253.56,0.0005,30]
[357122431,1743762637896,-347.57,0.0005,30]
[357122432,1743762637906,-150.0,0.0005,30]
[357122433,1743762637916,-224.75,0.0005,30]
[357122434,1743762637926,-444.76,0.0005,30]
[357122435,1743762637936,-150.0,0.0005,30]
[357122436,1743762637945,-150.0,0.0005,30]
[357122437,1743762637955,-347.57,0.0005,30]
[357122438,1743762637965,-784.07,0.0005,30]
[357122439,1743762637975,-150.0,0.0005,30]
[357122440,1743762637985,-444.76,0.0005,30]
[357122441,1743762637995,-347.57,0.0005,30]
[357122442,1743762638005,-150.0,0.0005,30]
[357122443,1743762638015,-784.07,0.0005,30]
[357122444,1743762638025,-347.57,0.0005,30]
[357122445,1743762638034,-784.07,0.0005,30]
[357122446,1743762638044,-444.76,0.0005,30]
[357122447,1743762638054,-150.0,0.0005,30]
[357122448,1743762638064,-347.57,0.0005,30]
[357122449,1743762638073,-444.76,0.0005,30]
[357122451,1743762638083,-150.0,0.0005,30]
[357122453,1743762638092,-784.07,0.0005,30]
[357122454,1743762638102,-347.57,0.0005,30]
[357122456,1743762638111,-444.76,0.0005,30]
[357122458,1743762638121,-784.07,0.0005,30]
[357122469,1743762638267,-347.57,0.0005,30]
[357122470,1743762638288,-444.76,0.0005,30]
[357122471,1743762638298,-784.07,0.0005,30]
[357122472,1743762638307,-347.57,0.0005,30]
[357122473,1743762638316,-444.76,0.0005,30]
[357122474,1743762638326,-784.07,0.0005,30]
[357122475,1743762638336,-347.57,0.0005,30]
[357122476,1743762638345,-444.76,0.0005,30]
[357122477,1743762638355,-784.07,0.0005,30]
[357122478,1743762638364,-347.57,0.0005,30]
[357122479,1743762638373,-784.07,0.0005,30]
[357122480,1743762638383,-444.76,0.0005,30]
[357122481,1743762638392,-784.07,0.0005,30]
[357122482,1743762638401,-444.76,0.0005,30]
[357122483,1743762638410,-437.49,0.0005,30]
[357122484,1743762638419,-784.07,0.0005,30]
[357122485,1743762638428,-444.76,0.0005,30]
[357122486,1743762638438,-784.07,0.0005,30]
[357122487,1743762638447,-444.76,0.0005,30]
[357122488,1743762638457,-784.07,0.0005,30]
[357122489,1743762638466,-444.76,0.0005,30]
[357122490,1743762638475,-784.07,0.0005,30]
[357122491,1743762638484,-444.76,0.0005,30]
[357122492,1743762638493,-444.76,0.0005,30]
[357122493,1743762638502,-929.46,0.0005,30]
[357122494,1743762638512,-400.92,0.0005,30]
[357122495,1743762638521,-48000.0,0.0005,120]
[357122496,1743762638530,-500.0,0.00050219,120]
[357122497,1743762638540,-1000.0,0.00050308,30]
[357122498,1743762638549,-150.34,0.0005049,120]
[357122499,1743762638559,-150.34,0.0005049,120]
[357122500,1743762638568,-150.34,0.0005049,120]
[357122501,1743762638577,-150.34,0.0005049,120]
[357122502,1743762638586,-150.34,0.0005049,120]
[357122503,1743762638595,-154.38679738,0.0005049,7]
[357122504,1743762638605,-24000.0,0.000505,120]
[357122505,1743762638614,-366657.89529835,0.000505,120]
[357122506,1743762638627,-572136.10470165,0.000505,120]
[357122507,1743762638637,-249.81174537,0.00050735,8]
[357122508,1743762638646,-571.71,0.00050853,2]
[357122509,1743762638656,-1118.0,0.00050887,120]
[357122510,1743762638666,-501.58752862,0.0005089,80]
[357122511,1743762638675,-1974.52323679,0.0005089,15]
[357122512,1743762638684,-186.43356087,0.000509,42]
[357122513,1743762638694,-227.8574,0.000509,120]
[357122514,1743762638703,-477.5275195,0.00050919,120]
[357122515,1743762638712,-500.0,0.00050973,10]
[357122516,1743762638722,-85898.3336348,0.0005098,4]
[357122517,1743762638731,-150.34,0.0005098,120]
[357122518,1743762638741,-150.34,0.0005098,120]
[357122519,1743762638750,-150.34,0.0005098,120]
[357122520,1743762638760,-150.34,0.0005098,120]
[357122521,1743762638769,-500.0,0.00050988,120]
[357122522,1743762638778,-500.0,0.00050988,120]
[357122523,1743762638787,-648.10599681,0.00050988,120]
[357122524,1743762638797,-500.0,0.00050988,120]
[357122525,1743762638806,-1654.61240518,0.00050988,120]
[357122526,1743762638816,-500.0,0.00050988,120]
[357122527,1743762638825,-1654.61240518,0.00050988,120]
[357122528,1743762638835,-500.0,0.00050988,120]
[357122529,1743762638846,-1654.61240518,0.00050988,120]
[357122530,1743762638855,-1654.61240518,0.00050988,120]
[357122531,1743762638865,-500.0,0.00050988,120]
[357122532,1743762638875,-1654.61240518,0.00050988,120]
[357122533,1743762638884,-500.0,0.00050988,120]
[357122534,1743762638893,-1654.61240518,0.00050988,120]
[357122535,1743762638903,-1654.61240518,0.00050988,120]
[357122536,1743762638912,-500.0,0.00050988,120]
[357122537,1743762638922,-1654.61240518,0.00050988,120]
[357122538,1743762638931,-1654.61240518,0.00050988,120]
[357122539,1743762638941,-1654.61240518,0.00050988,120]
[357122540,1743762638951,-1654.61240518,0.00050988,120]
[357122541,1743762638960,-1654.61240518,0.00050988,120]
[357122542,1743762638970,-1654.61240518,0.00050988,120]
[357122543,1743762638979,-1654.61240518,0.00050988,120]
[357122544,1743762638989,-1654.61240518,0.00050988,120]
[357122545,1743762638998,-1654.61240518,0.00050988,120]
[357122546,1743762639011,-1654.61240518,0.00050988,120]
[357122547,1743762639021,-1654.61240518,0.00050988,120]
[357122548,1743762639032,-1654.61240518,0.00050988,120]
[357122549,1743762639042,-1654.61240518,0.00050988,120]
[357122550,1743762639052,-1654.61240518,0.00050988,120]
[357122551,1743762639062,-1654.61240518,0.00050988,120]
[357122552,1743762639073,-1654.61240518,0.00050988,120]
[357122553,1743762639083,-1654.61240518,0.00050988,120]
[357122554,1743762639093,-1654.61240518,0.00050988,120]
[357122555,1743762639103,-309234.001085,0.0005099,4]
[357122556,1743762639113,-401157.169607,0.0005099,4]
[357122557,1743762639122,-150.34,0.0005099,120]
[357122558,1743762639132,-150.34,0.0005099,120]
[357122559,1743762639141,-150.34,0.0005099,120]
[357122560,1743762639151,-150.34,0.0005099,120]
[357122561,1743762639163,-150.34,0.0005099,120]
[357122562,1743762639172,-150.34,0.0005099,120]
[357122563,1743762639182,-1000000.0,0.00051,120]
[357122564,1743762639192,-13861.84348597,0.00051,30]
[357122565,1743762639202,-1883.8,0.00051,14]
[357122566,1743762639211,-151.0,0.00051,120]
[357122567,1743762639221,-151.0,0.00051,120]
[357122568,1743762639230,-15177.23,0.00051,60]
[357122569,1743762639242,-162.29,0.00051017,120]
[357122570,1743762639252,-1974.52323671,0.00051044,15]
[357122571,1743762639263,-1974.52323671,0.00051198,15]
[357122572,1743762639273,-1974.52323671,0.00051353,15]
[357122573,1743762639283,-463.55228764,0.000514,2]
[357122574,1743762639292,-185.9152458,0.000514,10]
[357122575,1743762639302,-500.0,0.00051413,60]
[357122576,1743762639311,-500.0,0.00051473,10]
[357122577,1743762639320,-150.34,0.0005149,120]
[357122578,1743762639330,-150.34,0.0005149,120]
[357122579,1743762639340,-150.34,0.0005149,120]
[357122580,1743762639350,-150.34,0.0005149,120]
[357122581,1743762639361,-150.34,0.0005149,120]
[357122582,1743762639371,-150.34,0.0005149,120]
[357122583,1743762639381,-368.25692013,0.000515,61]
[357122584,1743762639392,-21297.18891057,0.000515,61]
[357122585,1743762639402,-1000000.0,0.000515,120]
[357122586,1743762639412,-151.0,0.000515,120]
[357122587,1743762639422,-151.0,0.000515,120]
[357122588,1743762639432,-151.0,0.000515,120]
[357122589,1743762639442,-151.0,0.000515,120]
[357122590,1743762639453,-151.0,0.000515,120]
[357122591,1743762639463,-1974.52323671,0.00051507,15]
[357122592,1743762639473,-500.0,0.00051519,120]
[357122593,1743762639482,-1974.52323671,0.00051661,15]
[357122594,1743762639492,-1974.52323671,0.00051815,15]
[357122595,1743762639501,-500.0,0.0005191,120]
[357122596,1743762639515,-1974.52323671,0.0005197,15]
[357122597,1743762639524,-500.0,0.00051973,10]
[357122598,1743762639534,-621.6045487,0.00051973,10]
[357122599,1743762639543,-528.52405381,0.00051973,10]
[357122600,1743762639553,-151.888754,0.0005199,120]
[357122601,1743762639562,-151.0,0.0005199,120]
[357122602,1743762639572,-151.0,0.0005199,120]
[357122603,1743762639581,-150.34,0.0005199,120]
[357122604,1743762639590,-150.34,0.0005199,120]
[357122605,1743762639600,-150.34,0.0005199,120]
[357122606,1743762639609,-150.34,0.0005199,120]
[357122607,1743762639618,-150.34,0.0005199,120]
[357122608,1743762639627,-144915.32561982,0.00052,120]
[357122619,1743762640819,-2491.95038822,0.00052,120]
[357122620,1743762640991,-499.03858958,0.00052,120]
[357122621,1743762641092,-173025.49281474,0.00052,120]
[357122622,1743762641142,-20429.10700991,0.00052,120]
[357122623,1743762641153,-8289.971,0.00052,120]
[357122638,1743762643125,-54000.0,0.00052,120]
[357122820,1743762646015,-2503.8078859,0.00052,120]
[357122823,1743762646027,-416799.99999998,0.00052,120]
[357122827,1743762646045,-8143.8578668,0.00052,120]
[357122830,1743762646057,-1324.34123758,0.00052,120]
[357122845,1743762646214,-83550.0,0.00052,120]
[357122852,1743762646326,-549.60519752,0.00052,120]
[357122856,1743762646561,-5538.11903221,0.00052,120]
[357122857,1743762646575,-255.74031821,0.00052,120]
[357122858,1743762646588,-16981.20108296,0.00052,120]
[357122859,1743762690391,500.0,0.00049315,120]
[357122860,1743762690779,254.02754398,0.00049315,120]
[357122861,1743762728489,167.42,0.00041378,2]
[357122864,1743763612079,-197.0813205,0.00026849,2]
[357122865,1743763648088,-469.72941918,0.00026849,2]
[357122866,1743763651105,-3005.17966898,0.00026849,2]
[357122867,1743763651126,-157.39,0.00026849,2]
[357122868,1743763651146,-250.0,0.00027,2]
[357122869,1743763651166,-300.0,0.00029,2]
[357122870,1743763651185,-350.0,0.00031,2]
[357122871,1743763651205,-1847.6199586,0.000318,2]
[357122872,1743763651224,-400.0,0.00033,2]
[357122873,1743763651244,-450.0,0.00035,2]
[357122874,1743763651264,-157.39,0.00035321,2]
[357122875,1743763651283,-1009.0,0.00035862,30]
[357122876,1743763651303,-500.0,0.00037,2]
[357122877,1743763651330,-154.44,0.000436,36]
[357122878,1743763651357,-154.44,0.000436,36]
[357122879,1743763651383,-154.44,0.000436,36]
[357122880,1743763651404,-157.39,0.00043793,2]
[357122881,1743763651424,-494.2459,0.00046888,30]
[357122882,1743763651449,-154.44,0.000474,42]
[357122883,1743763651478,-154.44,0.000474,42]
[357122884,1743763651504,-154.44,0.000474,42]
[357122885,1743763651530,-154.44,0.000474,42]
[357122886,1743763651557,-154.44,0.000474,42]
[357122887,1743763651581,-154.44,0.000474,42]
[357122888,1743763651601,-250.0,0.0004796,2]
[357122889,1743763651621,-250.0,0.0004796,2]
[357122890,1743763651641,-585.69,0.00048484,2]
[357122891,1743763651662,-202.94,0.00048905,120]
[357122892,1743763651683,-500.0,0.0004895,120]
[357122893,1743763651704,-595.81,0.0004907,2]
[357122894,1743763651726,-500.0,0.00049505,120]
[357122895,1743763651746,-250.0,0.00049513,120]
[357122896,1743763651769,-516.45622187,0.00049558,120]
[357122897,1743763651791,-500.0,0.00049558,120]
[357122898,1743763651816,-500.0,0.00049558,120]
[357122899,1743763652019,-500.0,0.00049558,120]
[357122900,1743763652041,-500.0,0.00049558,120]
[357122901,1743763652063,-500.0,0.00049558,120]
[357122902,1743763652083,-500.0,0.00049558,120]
[357122903,1743763652105,-500.0,0.00049558,120]
[357122904,1743763652126,-500.0,0.00049558,120]
[357122905,1743763652146,-500.0,0.00049558,120]
[357122906,1743763652167,-500.0,0.00049558,120]
[357122907,1743763652188,-500.0,0.00049558,120]
[357122908,1743763652210,-500.0,0.00049558,120]
[357122909,1743763652231,-500.0,0.00049558,120]
[357122910,1743763652252,-500.0,0.00049558,120]
[357122911,1743763652272,-500.0,0.00049558,120]
[357122912,1743763652292,-380.84272355,0.00049558,120]
[357122913,1743763652313,-500.0,0.00049558,120]
[357122914,1743763652334,-500.0,0.00049558,120]
[357122915,1743763652355,-500.0,0.00049558,120]
[357122916,1743763652376,-500.0,0.00049558,120]
[357122917,1743763652398,-500.0,0.00049558,120]
[357122918,1743763652420,-500.0,0.00049558,120]
[357122919,1743763652442,-500.0,0.00049558,120]
[357122920,1743763652468,-500.0,0.00049558,120]
[357122921,1743763652488,-23900.0,0.00049559,2]
[357122922,1743763652508,-150.0,0.00049559,7]
[357122923,1743763652530,-1000.0,0.00049697,120]
[357122924,1743763652552,-200.0,0.00049897,2]
[357122925,1743763652573,-655.38874011,0.00049905,15]
[357122926,1743763652593,-1320.0,0.00049915,2]
[357122927,1743763652613,-200.0,0.00049998,2]
[357122928,1743763652634,-177.246,0.00049998,88]
[357122929,1743763652654,-573.546,0.00049998,88]
[357122930,1743763652674,-769.60261788,0.00049999,120]
[357122931,1743763652694,-769.60261788,0.00049999,120]
[357122932,1743763652713,-769.60261788,0.00049999,120]
[357122933,1743763652734,-769.60261788,0.00049999,120]
[357122934,1743763652753,-769.60261788,0.00049999,120]
[357122935,1743763652773,-769.60261788,0.00049999,120]
[357122936,1743763652793,-769.60261788,0.00049999,120]
[357122937,1743763652813,-769.60261788,0.00049999,120]
[357122938,1743763652834,-769.60261788,0.00049999,120]
[357122939,1743763652854,-769.60261788,0.00049999,120]
[357122940,1743763652873,-769.60261788,0.00049999,120]
[357122941,1743763652893,-769.60261788,0.00049999,120]
[357122942,1743763652913,-769.60261788,0.00049999,120]
[357122943,1743763652933,-769.60261788,0.00049999,120]
[357122944,1743763652953,-769.60261788,0.00049999,120]
[357122945,1743763652975,-769.60261788,0.00049999,120]
[357122946,1743763652994,-769.60261788,0.00049999,120]
[357122947,1743763653014,-769.60261788,0.00049999,120]
[357122948,1743763653035,-857.5572028,0.00049999,120]
[357122949,1743763653055,-857.5572028,0.00049999,120]
[357122950,1743763653076,-857.5572028,0.00049999,120]
[357122951,1743763653097,-857.5572028,0.00049999,120]
[357122952,1743763653119,-857.5572028,0.00049999,120]
[357122953,1743763653140,-857.5572028,0.00049999,120]
[357122954,1743763653167,-857.5572028,0.00049999,120]
[357122955,1743763653190,-168723.0,0.0005,120]
[357122956,1743763653211,-501.58752862,0.00050005,80]
[357122957,1743763653234,-150.0,0.00050105,120]
[357122958,1743763653256,-655.38874008,0.00050238,15]
[357122959,1743763653277,-198.74,0.00050357,2]
[357122960,1743763653298,-346.27,0.00050357,2]
[357122961,1743763653319,-169.54865263,0.000504,28]
[357122962,1743763653342,-1184.71394208,0.00050419,15]
[357122963,1743763653364,-1200.8787182,0.00050471,22]
[357122964,1743763653386,-30942.7939548,0.0005049,4]
[357122965,1743763653411,-55978.0,0.000505,120]
[357122966,1743763653433,-47949.36602097,0.000505,120]
[357122967,1743763745096,-550.0,0.00039,2]
[357122968,1743763757996,1000.0,0.00045,2]
[357122971,1743763821205,433.0,0.000477,2]
[357122975,1743763832109,-172.70724595,0.00050421,120]
[357122976,1743763832118,-500.0,0.00050499,120]
[357122977,1743763832127,-500.0,0.00050499,120]
[357122978,1743763832137,-320.09363595,0.00050499,120]
[357122979,1743763832146,-24811.63397903,0.000505,120]
[357122980,1743763832155,-535.6,0.00050521,2]
[357122981,1743763832165,-162.29,0.0005062,120]
[357122982,1743763832175,-500.0,0.00050633,60]
[357122983,1743763832185,-1184.71394202,0.00050695,15]
[357122984,1743763832194,-585.69,0.00050748,2]
[357122985,1743763832204,-1571.03517536,0.00050958,16]
[357122986,1743763832213,-1184.71394202,0.0005097,15]
[357122987,1743763832222,-150.0,0.00050999,120]
[357122988,1743763832232,-150.0,0.00051,2]
[357122989,1743763832241,-15798.60459815,0.00051,120]
[357122990,1743763832265,-407.2941518,0.00051,120]
[357122991,1743763832280,-276.9810867,0.00051,120]
[357122992,1743763832408,-52.19215766,0.00051,120]
[357122993,1743763832435,-150.0,0.00050421,120]
[357122994,1743763832444,-457.22027339,0.00051,120]
[357123212,1743763837298,600.0,0.000477,2]
[357123215,1743763838113,-14192.24627348,0.00051,120]
[357123216,1743763838128,-28715.46145882,0.00051,120]
[357123217,1743763838138,-154.44,0.000511,48]
[357123218,1743763838149,-154.44,0.000511,48]
[357123219,1743763838159,-154.44,0.000511,48]
[357123220,1743763838168,-154.44,0.000511,48]
[357123221,1743763838178,-154.44,0.000511,48]
[357123222,1743763838188,-154.44,0.000511,48]
[357123223,1743763838198,-500.0,0.00051233,60]
[357123224,1743763838208,-1184.71394202,0.00051246,15]
[357123225,1743763838219,-502.35504432,0.00051258,60]
[357123226,1743763838228,-154.73,0.00051337,2]
[357123227,1743763838238,-3052.43227994,0.0005146,2]
[357123228,1743763838247,-1184.71394202,0.00051522,15]
[357123229,1743763838257,-595.81,0.00051523,2]
[357123230,1743763838266,-500.0,0.00051623,60]
[357123231,1743763838275,-500.0,0.00051766,60]
[357123232,1743763838287,-1184.71394202,0.00051797,15]
[357123233,1743763838297,-25026.7022,0.0005187,2]
[357123234,1743763838306,-856.3153,0.0005187,2]
[357123235,1743763838316,-459.3977,0.0005187,120]
[357123236,1743763838326,-169.54865262,0.0005189,28]
[357123237,1743763838335,-91910.60146141,0.0005197,120]
[357123248,1743763839243,-8152.6568617,0.0005197,120]
[357123249,1743763839253,-6672.86877038,0.0005197,4]
[357123250,1743763839263,-186.43356087,0.00051973,46]
[357123251,1743763839272,-133457.375408,0.0005198,4]
[357123252,1743763839281,-180977.16147335,0.0005199,4]
[357123265,1743763843229,-21.89792454,0.0005199,4]
[357123274,1743763843936,-25859.87248411,0.0005199,4]
[357123275,1743763843946,-154.38679739,0.0005199,7]
[357123276,1743763843956,-150.35,0.0005199,120]